Cogmind - Beta 15 @@@ ROGUE MODE // 2025.08.09 @ 21:21:35 Player: Skysub Result: Destroyed by X1-GX4(R) with Subdweller Machine Gun Performance ------------- Evolutions (0) 0 Regions Visited (3) 600 Robots Destroyed (29) 145 Value Destroyed (607) 607 Prototype IDs (3) 60 Alien Tech Used (0) 0 Bonus (0) 0 TOTAL SCORE: 1412 Bonus ------- None Cogmind --------- Core Integrity 0/250 Matter 172/300 Energy 185/200 System Corruption 0% Temperature Cool (0) Movement Rolling (130) Ox2 Location -10/Subcaves Parts ------- > --- POWER (1) -------- Subdweller Power Source > --- PROPULSION (2) --- Light Treads Subdweller Monowheel > --- UTILITY (2) ------ High-capacity Storage Unit > --- WEAPON (2) ------- Subdweller Machine Gun Subdweller Shrapnel Launcher > --- INVENTORY (20) --- Light Treads Light Treads Light Treads Light Treads Compact Wheel Subdweller Monowheel High-capacity Matter Pod (172) Experimental Sensor Array Scrap Shield Scrap Shield Subdweller Machine Gun Grenade Launcher Grenade Launcher Hammer Peak State ------------ > --- POWER ------------ Light Ion Engine > --- PROPULSION ------- Light Treads Compact Wheel > --- UTILITY ---------- High-capacity Storage Unit Experimental Sensor Array > --- WEAPON ----------- Light Assault Rifle Grenade Launcher > --- INVENTORY -------- Light Treads Light Treads Light Treads Light Treads High-capacity Matter Pod Light Armor Plating Medium Laser Grenade Launcher Hammer [Rating: 15] Favorites ----------- Power Light Ion Engine Engine Light Ion Engine Propulsion Light Treads Treads Light Treads Wheel Compact Wheel Utility High-capacity Storage Unit Device Seismic Detector Storage High-capacity Storage Unit Protection Light Armor Plating Weapon Light Assault Rifle Energy Gun Medium Laser Ballistic Gun Light Assault Rifle Launcher Grenade Launcher Impact Weapon Hammer Build | -11 -10 -10 -10 ------- Run | Yrd Mat Min Sub Slots Evolved . | . . . . Power . | . . . . Propulsion . | . . . . Utility . | . . . . Weapon . | . . . . Parts Attached 22 | 7 5 2 8 Power 3 | 1 1 . 1 Engine 3 | 1 1 . 1 Core . | . . . . Reactor . | . . . . Propulsion 6 | 2 2 . 2 Treads 4 | 2 1 . 1 Leg . | . . . . Wheel 2 | . 1 . 1 Hover . | . . . . Flight . | . . . . Utility 5 | 2 2 1 . Device 2 | 1 . 1 . Storage 2 | 1 1 . . Processor . | . . . . Hackware . | . . . . Protection 1 | . 1 . . Artifact . | . . . . Weapon 8 | 2 . 1 5 Energy Gun 1 | 1 . . . Energy Cannon . | . . . . Ballistic Gun 3 | 1 . . 2 Ballistic Cannon . | . . . . Launcher 3 | . . 1 2 Special Weapon . | . . . . Impact Weapon 1 | . . . 1 Slashing Weapon . | . . . . Piercing Weapon . | . . . . Special Melee Weapon . | . . . . Unidentified Prototypes 1 | . . 1 . Parts Lost 5 | . . . 5 Power 1 | . . . 1 Propulsion 1 | . . . 1 Utility 1 | . . . 1 Weapon 2 | . . . 2 Highest Loss Streak 3 | . . . 3 To Critical Strikes . | . . . . Average Backups 8 | 3 6 8 10 Power . | . . . . Propulsion 3 | 1 3 4 4 Utility 1 | . . 1 2 Weapon 3 | . 2 3 4 Tool/Special . | . . . . Unused Backups 10 | . 3 . 7 Power . | . . . . Propulsion 5 | . 1 . 4 Utility 4 | . 1 . 3 Weapon 1 | . 1 . . Tool/Special . | . . . . Average Slot Usage (%) 92 | . 100 100 84 Engine 9 | . 14 14 5 Treads 17 | . 23 14 13 Wheel 10 | . 4 14 14 Device 3 | . 9 . . Storage 14 | . 14 14 14 Protection 7 | . 4 14 8 Energy Gun 8 | . 14 . 7 Ballistic Gun 12 | . 14 14 10 Launcher 3 | . . 14 2 Impact Weapon 3 | . . . 7 Peak Build Rating 15 | 7 7 15 13 Average Rating 7 | 5 7 7 8 On Entrance 5 | . 7 7 8 Naked Turns . | . . . . Heaviest Build 57 | 14 49 50 57 Greatest Support 40 | 40 40 16 20 Greatest Overweight (x) 4 | 4 3 3 3 Average Overweight (x) 1 | . . 3 2 Largest Inventory Capacity 20 | 8 20 20 20 Average Capacity 16 | 7 11 20 20 Most Carried 16 | 4 8 9 16 Average Carried 8 | 3 6 8 11 Final Capacity 20 | 8 20 20 20 Final Carried 16 | 4 8 9 16 Class Distribution -------------------- 100% | Mutant Dominant Class ---------------- Mutant | -10/Materials Mutant | -10/Mines Mutant | -10/Subcaves Resources | -11 -10 -10 -10 ----------- Run | Yrd Mat Min Sub Matter Collected 747 | 277 168 49 253 Remotely . | . . . . Salvage Created 744 | 125 443 12 164 Parts 50 | 7 30 3 10 Haulers Intercepted 1 | . 1 . . Recyclers Shooed 1 | . 1 . . Parts Field Recycled . | . . . . Retrieved Matter . | . . . . Parts Self-Destructed 14 | . . . 14 Prevented . | . . . . Kills | -11 -10 -10 -10 ------- Run | Yrd Mat Min Sub Combat Hostiles Destroyed 24 | . 15 3 6 Guns 19 | . 15 . 4 AOE 5 | . . 3 2 Classes Destroyed 8 | 2 4 . 2 Tunneler 2 | 2 . . . Hauler 1 | . 1 . . Recycler 1 | 1 . . . Watcher 1 | . 1 . . Swarmer 12 | . 9 3 . Grunt 6 | . 6 . . Sentry 1 | . . . 1 Subdweller 5 | . . . 5 Best Kill Streak 3 | 3 3 3 3 Combat Bots Only 3 | . 3 3 3 Max Kills in Single Turn 3 | 1 2 3 2 Gunslinging 1 | . 1 . . Exploded 3 | . . 3 1 Melee . | . . . . Uniques/NPCs Destroyed . | . . . . Combat | -11 -10 -10 -10 -------- Run | Yrd Mat Min Sub Hostile Shots Fired 104 | . 62 3 39 Missed 34 | . 20 1 13 Hits 70 | . 42 2 26 Projectile 70 | . 42 2 26 Critical Strikes 1 | . . . 1 Damage Taken 980 | . 393 50 537 Core 267 | . 103 7 157 Absorbed by Shields . | . . . . Core Remaining (%) 100 | 100 . . . Volleys Fired 98 | 7 51 2 38 Largest 2 | 2 2 2 2 Hottest 80 | 70 70 50 80 Shots Fired 187 | 14 102 4 67 Gun 181 | 14 102 2 63 Cannon . | . . . . Launcher 6 | . . 2 4 Special . | . . . . Kinetic 106 | 7 51 2 46 Thermal 79 | 7 51 . 21 Explosive 2 | . . 2 . Electromagnetic . | . . . . Robot Hit Streak 21 | 6 11 5 21 Robot Miss Streak 3 | 2 3 . 2 Penetration Max . | . . . . Secondary Targets 5 | . 5 . . Max Gunslinging Chain 1 | . 1 . . Shots Hit Robots 123 | 8 66 3 46 Core Hits 43 | 4 25 4 10 Critical Kills . | . . . . Critical Parts Destroyed . | . . . . Critical Strikes 10 | 1 6 . 3 Burn 10 | 1 6 . 3 Melee Attacks 19 | . . . 19 Impact 19 | . . . 19 Slashing . | . . . . Piercing . | . . . . Sneak Attacks . | . . . . Combat Hostiles . | . . . . Follow-up Attacks . | . . . . Damage Inflicted 1712 | 88 698 139 787 Guns 1383 | 88 698 7 590 Cannons . | . . . . Explosions 329 | . . 132 197 Melee . | . . . . Ramming . | . . . . Kinetic 817 | 25 236 7 549 Thermal 763 | 63 462 . 238 Explosive 132 | . . 132 . Electromagnetic . | . . . . Impact . | . . . . Slashing . | . . . . Piercing . | . . . . Highest Corruption . | . . . . Average Corruption . | . . . . Corruption Purged . | . . . . Corruption Blocked . | . . . . Overload Shots . | . . . . Overflow Damage 6 | . . 6 . Projectiles . | . . . . Explosions 6 | . . 6 . Melee . | . . . . Knockbacks . | . . . . Impact . | . . . . Kinetic . | . . . . Secondary . | . . . . Self-Inflicted Damage 38 | . . 38 . Shots 1 | . . 1 . Rammed . | . . . . Targets Rammed . | . . . . Kicked . | . . . . Crushed . | . . . . Highest Temperature 270 | 60 270 16 4 Average Temperature 63 | 25 71 12 3 Received Heat Transfer 219 | . 126 . 93 Effects 2 | . 2 . . Energy Bleed 2 | . 2 . . Siege Activations . | . . . . Martial Activations . | . . . . Shielding Activations . | . . . . Robots Disrupted . | . . . . Combat Hostiles . | . . . . Robots Corrupted . | . . . . Combat Hostiles . | . . . . Parts Fried . | . . . . Impact Corruptions . | . . . . Robots Melted . | . . . . Combat Hostiles . | . . . . Parts Melted 4 | . 3 . 1 Heat Transferred 2997 | 259 1813 . 925 Parts Sabotaged . | . . . . Parts Stolen . | . . . . Parts Stripped . | . . . . Power Chain Reactions . | . . . . Alert | -11 -10 -10 -10 ------- Run | Yrd Mat Min Sub Maximum Alert Level . | . . . . Low Security (%) 100 | 100 100 100 . Level 1 . | . . . . Level 2 . | . . . . Level 3 . | . . . . Level 4 . | . . . . Level 5 . | . . . . High Security . | . . . . Max Security . | . . . . Peak Influence 129 | 5 129 94 . Initial 16 | . . 16 . Average 33 | . 41 20 . Influence Increases 601 | 15 481 85 20 Destroy 0b10 Robot/C 380 | . 300 60 20 Destroy 0b10 Robot/NC 25 | 15 10 . . Destroy Leader 64 | . 54 10 . Successful Hack 42 | . 42 . . Select Force Hacks 30 | . 30 . . Destroy Structure 15 | . . 15 . Lose Combat Pursuer 45 | . 45 . . Influence Decreases 601 | 15 439 127 20 Entered New Map 26 | . . 26 . Time Decay 575 | 15 439 101 20 Squads Dispatched 3 | . 3 . . Investigation 2 | . 2 . . Extermination . | . . . . Reinforcement 1 | . 1 . . Assault . | . . . . Garrison . | . . . . Intercept . | . . . . Searches Triggered . | . . . . Construction Impeded . | . . . . Haulers Reinforced . | . . . . Active Scanning Responses . | . . . . Cargo Convoy Interrupts . | . . . . Stealth | -11 -10 -10 -10 --------- Run | Yrd Mat Min Sub Distress Signals 1 | . 1 . . Communications Jammed . | . . . . Distress Signals . | . . . . Times Spotted 34 | . 23 3 8 Peak Tracking Total 3 | . 3 3 2 Tactical Retreats 2 | . 2 . . Traps | -11 -10 -10 -10 ------- Run | Yrd Mat Min Sub Traps Triggered . | . . . . Indirectly . | . . . . Trap Hack Attempts . | . . . . Triggered . | . . . . Disarmed 4 | . 4 . . Reprogrammed . | . . . . Reused . | . . . . Traps Extracted . | . . . . Installed . | . . . . Triggered . | . . . . Machines | -11 -10 -10 -10 ---------- Run | Yrd Mat Min Sub Machines Disabled . | . . . . Max in Single Turn . | . . . . Machines Repaired . | . . . . Machines Dismantled . | . . . . Machines Sabotaged . | . . . . Overloaded Fab Kills . | . . . . Hacking | -11 -10 -10 -10 --------- Run | Yrd Mat Min Sub Machines Accessed 9 | . 9 . . Terminals 7 | . 7 . . Fabricators . | . . . . Repair Stations . | . . . . Recycling Units 2 | . 2 . . Scanalyzers . | . . . . Garrison Access . | . . . . Total Hacks 34 | . 34 . . Successful 23 | . 23 . . Failed 11 | . 11 . . Catastrophic . | . . . . Database Lockouts . | . . . . Manual 17 | . 17 . . Terminals 28 | . 28 . . Fabricators . | . . . . Repair Stations . | . . . . Recycling Units 6 | . 6 . . Scanalyzers . | . . . . Garrison Access . | . . . . Terminal Hacks 10 | . 10 . . Prototype ID Bank 1 | . 1 . . Terminal Index 1 | . 1 . . Alert Level 1 | . 1 . . Locate Traps 1 | . 1 . . Disarm Traps 1 | . 1 . . Hauler Manifests 1 | . 1 . . Registered Components 1 | . 1 . . Zone Layout 3 | . 3 . . Fabricator Hacks . | . . . . Repair Station Hacks . | . . . . Recycling Unit Hacks 3 | . 3 . . Report Inventory 2 | . 2 . . Retrieve Components 1 | . 1 . . Scanalyzer . | . . . . Garrison Access Hacks . | . . . . Unauthorized Hacks 10 | . 10 . . Terminals 9 | . 9 . . Botnet 2 | . 2 . . Skim 7 | . 7 . . Fabricators . | . . . . Repair Stations . | . . . . Recycling Units 1 | . 1 . . Tunnel 1 | . 1 . . Scanalyzers . | . . . . Garrison Access . | . . . . Data Cores Recovered . | . . . . Used . | . . . . Hacking Detections 7 | . 7 . . Full Trace Events 2 | . 2 . . Feedback Events . | . . . . Feedback Blocked . | . . . . Robot Schematics Acquired . | . . . . Robots Built . | . . . . Authchips . | . . . . Time . | . . . . Total Robot Build Rating . | . . . . Part Schematics Acquired . | . . . . Parts Built . | . . . . Authchips . | . . . . Time . | . . . . Total Part Build Rating . | . . . . Parts Repaired . | . . . . Time . | . . . . Parts Recycled . | . . . . Recycled Matter . | . . . . Retrieved Matter . | . . . . Retrieved Components 2 | . 2 . . Parts Scanalyzed . | . . . . Part Schematics Acquired . | . . . . Parts Damaged . | . . . . Bothacking | -11 -10 -10 -10 ------------ Run | Yrd Mat Min Sub Used RIF Installer . | . . . . Robots Hacked . | . . . . Non-combat . | . . . . Combat . | . . . . Robot Hacks Applied . | . . . . Relay Couplers Released . | . . . . Fabnet Peak Effective % . | . . . . Robots Rewired . | . . . . Allies Hacked . | . . . . Hacks Repelled . | . . . . Allies | -11 -10 -10 -10 -------- Run | Yrd Mat Min Sub Total Allies . | . . . . Largest Group . | . . . . Highest-Rated Group . | . . . . Highest-Rated Ally . | . . . . Total Orders . | . . . . Ally Attacks . | . . . . Total Damage . | . . . . Kills . | . . . . Allies Corrupted . | . . . . Allies Melted . | . . . . Intel | -11 -10 -10 -10 ------- Run | Yrd Mat Min Sub Active Infowar (turns) 915 | 19 894 2 . Sensors 2 | . . 2 . Seismic 913 | 19 894 . . Robot Analysis Total . | . . . . Derelict Logs Recovered 3 | . . 2 1 Drone Launches . | . . . . Drone Recoveries . | . . . . Exploration | -11 -10 -10 -10 ------------- Run | Yrd Mat Min Sub Turns Passed 3735 | 134 1331 466 1804 Spaces Moved 2108 | 64 535 313 1196 Core 19 | 19 . . . Treads 535 | 45 490 . . Legs . | . . . . Wheels 1554 | . 45 313 1196 Hover . | . . . . Flight . | . . . . Fastest Speed 50 | 50 145 145 130 Average Speed 142 | 158 158 145 134 Slowest Speed 250 | 250 160 145 145 Overloaded Moves . | . . . . Propulsion Burnouts . | . . . . Robots Hopped . | . . . . Potential Cave-ins . | . . . . Cave-ins Triggered . | . . . . Exploration Rate (%) 55 | 4 89 64 65 Regions Visited 3 Branch Regions 2 Pre-discovered Areas 3 | . 2 1 . Known Exits Taken 1 | . . 1 . Unknown Exits Taken 2 | 1 1 . . Scrap Searched 3 | . . 1 2 Spaces Dug 5 | . . . 5 Terrain Destroyed 33 | . . 15 18 Melee 5 | . . . 5 Projectile . | . . . . AOE 28 | . . 15 13 Terrain Rammed . | . . . . Walls Destroyed . | . . . . Machines Disabled . | . . . . Actions | -11 -10 -10 -10 --------- Run | Yrd Mat Min Sub Total 2621 | 81 929 320 1291 Wait 341 | . 323 2 16 Move 2105 | 63 534 312 1196 Hop . | . . . . Pick Up 21 | 4 9 1 7 Fast Attach 8 | 7 . . 1 Attach 3 | . . . 3 Detach . | . . . . Swap 19 | . 5 3 11 Drop 7 | . 7 . . Fire 98 | 7 51 2 38 Melee 19 | . . . 19 Ram . | . . . . Kick . | . . . . Crush . | . . . . Escape Stasis . | . . . . Rewire . | . . . . Trap . | . . . . Miscellaneous . | . . . . Route ------- -11/Scrapyard -10/Materials (discovered 5 exits: *Mat x3 / [*Min] / *Sub) -10/Mines (discovered 3 exits: *Mat x2 / *Sub) -10/Subcaves (discovered 2 exits: [*Mat x2]) History --------- Turn | Location | Event 16 | -11/Scrapyard | Discovered new exit (range 16) 135 | -11/Scrapyard | Entered Materials 308 | -10/Materials | Build established: Mutant 442 | -10/Materials | Discovered new exit (range 16) 742 | -10/Materials | Discovered new exit (range 12) 881 | -10/Materials | Discovered new exit (range 6) 1128 | -10/Materials | Discovered new exit (range 4) 1137 | -10/Materials | Learned location of Recycling (-8) 1198 | -10/Materials | Identified exit to Materials 1251 | -10/Materials | Learned Storage emergency access door positions 1292 | -10/Materials | Learned 2 Mines zone layouts 1419 | -10/Materials | Learned 2 Materials zone layouts 1466 | -10/Materials | Entered Mines 1467 | -10/Mines | Identified exit to Subcaves 1488 | -10/Mines | Discovered exit to Materials (range 14) 1537 | -10/Mines | Found a damaged Exp. Sensor Array with a note attached 1541 | -10/Mines | Found Prototype Device 1574 | -10/Mines | Identified Exp. Sensor Array 1589 | -10/Mines | Learned location of Storage (-8) 1744 | -10/Mines | Assembled infested the area 1749 | -10/Mines | Assisted by a Guerilla fighting off Assembled 1932 | -10/Mines | Entered Subcaves 2052 | -10/Subcaves | Shifting Twisted Machinery released Flamer 2067 | -10/Subcaves | Discovered new exit (range 15) 2121 | -10/Subcaves | Shifting Twisted Machinery released Sub. Machine Gun 2278 | -10/Subcaves | Disturbed a concealed Subdweller 2446 | -10/Subcaves | Core integrity fell below 50% 2500 | -10/Subcaves | Learned Materials emergency access door positions 2552 | -10/Subcaves | Discovered new exit (range 9) 2804 | -10/Subcaves | Shifting Twisted Machinery released Lgt. Humpback 2814 | -10/Subcaves | Shifting Twisted Machinery released Sub. Shrapnel Launcher 2943 | -10/Subcaves | A swath of the cavern ceiling suddenly collapsed 3493 | -10/Subcaves | Core integrity fell below 20% 3527 | -10/Subcaves | Lost 3 parts (1n2w) 3689 | -10/Subcaves | Shifting Twisted Machinery released Battle Rifle 3736 | -10/Subcaves | Destroyed by X1-GX4(R) with Subdweller Machine Gun Last Messages --------------- 03553_ Acquired 38 matter. 03553_ Searching scrap... 03553_ Found Scrap Shield. 03553_ Found 54 Matter. 03554_ Acquired 54 matter. 03556_ Acquired Scrap Shield. 03588_ GC-2NF(R): "SUBHATE!" 03599_ GC-2NF(R) destroyed. 03603_ PK-L4U(R) destroyed. 03603_ T8-Q45(R) destroyed. 03626_ Acquired Sub. Power Source. 03627_ Acquired 2 matter. 03630_ Acquired Sub. Machine Gun. 03632_ Acquired 12 matter. 03635_ Acquired Sub. Monowheel. 03639_ Subatomizers dissect the Disposable Heat Sink. Battle Rifle falls loose from the Twisted Machinery. 03709_ O3-ZXV(z): "She is not going to be happy we haven't found any suitable candidates yet." 03729_ O3-ZXV(z) destroyed. Map ----- +----------------------------------------------------+ | ?????????????????????????????????????????????????? | | ?????????????????????????????????????????????????? | | ?????????????????????????????????????????????????? | | ?????????????????????????????????????????????????? | | ?????????????????????????????????????????????????? | | ?????????????????????????????????????????????????? | | ?????????????????????????????????????????????????? | | ?????????????????????????????????????????????????? | | ?????????????????????????????????????????????????? | | ?????????????????????????????????????????????????? | | ?????????????????????????????????????????????????? | | ?????????????????????????????????????????????????? | | ?????????????????????????????????????????????????? | | ?????????????????????????????????????????????????? | | ????????????????????????"????????????????????????? | | ??????????????????????? "???????????????????????? | | ??????????????????????"" "???????????????????????? | | ??????????????????????""""#??????????????????????? | | ?????????????????????##"""#??????????????????????? | | ????????????????????## ##???????? #???????????? | | ???????????????????## ####### #???????????? | | ????????????????????% # #????????????? | | ????????????????????? R ??????????????? | | ?????????????????????? R ?????????????????? | | ???????????????????????# #???????????????????? | | ????????????????????????#@%#???####??????????????? | | ???????????????????????## #??## #??????????????? | | ??????????????????????## ##??# ##?????????????? | | ??????????????????????# ##### #?????????????? | | ??????????????????????# ## ##?????????????? | | ??????????????????????## ##??????????????? | | ???????????????????????## ##???????????????? | | ????????????????????????# ##???????????????? | | ????????????????????????# #???????????????? | | ??????????????####??????# ##???????????????? | | ?????????????## #???### ####?????????????? | | ?????????????# #### #?????????????? | | ??????????????? #?????????????? | | ?????????????????## ##?????????????? | | ?????????? ??##?## ##??????????????? | | ??????????# # # #???????????????? | | ??????????# ## #???????????????? | | ??????????# ## #####???????????????? | | ??????????# # ## ### #???????????????????? | | ???????????#???????### #####???????????????????? | | ?????????????????????# ##?????????????????????? | | ??????????????? ""???#""" ###???????????????????? | | ???????????????""""??## " "##" ?????????????? | | ???????????????## ""?## " """ " ??????????????? | | ??????????????##""" ?#"" ## "" "[ ?????????????? | +----------------------------------------------------+ Best States ------------- Heat Dissipation 25 Energy Generation 15 Energy Capacity 250 Matter Stores 300 Matter Capacity 300 Sight Range 16 Terrain Scan Density 10 Armor Coverage 150 Evasion (%) 40 Recoil Reduction 2 Item Schematics ----------------- None Robot Schematics ------------------ None Fabricated ------------ Nothing Repaired ---------- Nothing Alien Tech Used ----------------- None Achievements -------------- None Challenges ------------ None Game ------ Seed CoreDeepFemtoactuators Manual? 0 Play Time 00:20:22 Cumulative 247.7 hours Start 2025.08.09 @ 21:07:47 End 2025.08.09 @ 21:21:35 Sessions 1 Manual Loads 0 Difficulty Rogue Special Mode None Game No. 257 Rogue 257 Adventurer 0 Explorer 0 Win Type - Total 11 Types 5/0/3/1/0/0/0/1/0/1 Lore% 75 Gallery% 71 Achievement% 66 Wizard Run 0 Options --------- Layout 1 ASCII 0 Keyboard 1 Movement Numpad Keybinds 0 Fullscreen 1 Font 32/SmallcapsGlow Map View 77x35 Zoom Use 0% Tactical HUD 1 Map Filters NONE Filters NONE Steam 1 RUN: 32348d64-a483-409a-97f0-b0ed2032f1a3